bitfinex/quotes_SOLUSD_20250818
["timestamp","ask_amount","ask_price","bid_price","bid_amount"]
[1755499291637,0.06,181.41,181.4,5.51267916]
[1755499292325,0.06,181.41,181.4,45.81267916]
[1755499294241,0.76,181.41,181.39,45.81290492]
[1755499294441,0.06,181.41,181.39,45.81290492]
[1755499295029,0.06,181.41,181.37,5.513591]
[1755499295232,9.27863728,181.38,181.34,40.3]
[1755499295540,0.7,181.37,181.34,40.3]
[1755499295943,9.27863728,181.38,181.34,40.3]
[1755499296148,9.97863728,181.38,181.34,40.3]
[1755499296350,0.7,181.4,181.34,50.24863728]
[1755499296763,0.06,181.4,181.37,9.27863728]
[1755499297058,0.06,181.4,181.38,40.3]
[1755499297238,0.06,181.4,181.37,40.28]
[1755499297763,0.06,181.4,181.37,50.22863728]
[1755499298339,0.06,181.4,181.38,0.67]
[1755499298538,0.06,181.4,181.37,40.28]
[1755499299164,0.06,181.4,181.37,45.79342813]
[1755499299365,0.7,181.39,181.37,45.79342813]
[1755499299567,9.97863728,181.39,181.33,23.0652534]
[1755499299866,9.27863728,181.34,181.32,40.28]
[1755499300170,5.57272152,181.4,181.32,40.28]
[1755499300171,0.7,181.33,181.32,40.28]
[1755499300364,9.97863728,181.36,181.32,40.28]
[1755499300562,9.97863728,181.38,181.33,0.67]
[1755499300769,9.27863728,181.38,181.33,9.94863728]
[1755499300979,26.0,181.39,181.34,9.94863728]
[1755499300980,35.27863728,181.39,181.34,9.94863728]
[1755499301151,0.76,181.4,181.36,5.51389501]
[1755499301464,0.06,181.4,181.36,5.51389501]
[1755499301655,0.06,181.4,181.37,0.67]
[1755499301853,9.97863728,181.39,181.36,5.51389501]
[1755499302052,9.27863728,181.39,181.36,5.51389501]
[1755499302357,0.7,181.38,181.36,5.51389501]
[1755499302742,9.97863728,181.38,181.36,5.51389501]
[1755499302955,0.7,181.38,181.36,5.51389501]
[1755499303266,0.06,181.4,181.36,5.51389501]
[1755499303447,0.06,181.4,181.36,6.18389501]
[1755499303653,0.06,181.4,181.37,0.67]
[1755499303856,0.06,181.4,181.37,9.94863728]
[1755499304445,0.06,181.4,181.36,28.57726982]
[1755499304652,0.06,181.4,181.36,29.24726982]
[1755499305273,10.03863728,181.4,181.36,5.51389501]
[1755499305575,9.27863728,181.37,181.34,45.7942491]
[1755499305886,0.7,181.39,181.34,46.4642491]
[1755499306043,0.06,181.4,181.35,9.94863728]
[1755499306246,9.33863728,181.4,181.35,9.94863728]
[1755499306460,9.33863728,181.4,181.34,45.7942491]
[1755499306661,9.33863728,181.4,181.36,0.69]
[1755499306868,9.98863728,181.4,181.35,9.27863728]
[1755499307077,9.98863728,181.4,181.35,0.69]
[1755499307442,9.98863728,181.4,181.36,5.51389501]
[1755499307647,9.92863728,181.39,181.36,5.51389501]
[1755499307954,0.65,181.38,181.36,5.51389501]
[1755499308152,9.33863728,181.4,181.36,5.51389501]
[1755499308645,9.98863728,181.4,181.36,5.51389501]
[1755499309340,0.71,181.4,181.36,5.51389501]
[1755499309545,0.06,181.4,181.36,6.20389501]
[1755499309953,9.33863728,181.4,181.36,6.20389501]
[1755499310364,0.71,181.4,181.36,6.20389501]
[1755499310572,9.98863728,181.4,181.36,6.20389501]
[1755499311152,9.98863728,181.4,181.36,5.51389501]
[1755499312367,0.71,181.4,181.36,5.51389501]
[1755499312578,9.98863728,181.4,181.36,5.51389501]
[1755499312872,0.71,181.4,181.36,5.51389501]
[1755499313044,0.71,181.4,181.38,9.27863728]
[1755499313045,0.06,181.4,181.38,9.27863728]
[1755499313361,0.06,181.4,181.38,119.68]
[1755499313674,0.06,181.4,181.36,5.51389501]
[1755499313854,35.27863728,181.37,181.31,0.03]
[1755499314169,9.27863728,181.33,181.31,5.54530103]
[1755499314351,0.65,181.36,181.31,5.54530103]
[1755499314550,9.27863728,181.33,181.31,0.03]
[1755499314749,0.65,181.32,181.31,0.03]
[1755499315158,9.27863728,181.33,181.31,0.03]
[1755499315354,9.92863728,181.32,181.31,0.03]
[1755499315944,15.44374868,181.32,181.31,0.03]
[1755499317459,19.06217825,181.32,181.31,0.03]
[1755499317653,19.06178467,181.32,181.31,0.03]
[1755499317872,24.88936296,181.32,181.31,0.03]
[1755499318070,34.16800024,181.32,181.31,0.03]
[1755499318272,26.0,181.3,181.29,0.03]
[1755499318459,38.89667327,181.3,181.29,0.03]
[1755499318660,39.54667327,181.3,181.29,0.03]
[1755499319980,45.06239307,181.3,181.29,0.03]
[1755499320589,35.78375579,181.3,181.29,0.03]
[1755499320780,45.06239307,181.3,181.29,0.03]
[1755499321356,79.84667327,181.3,181.29,0.03]
[1755499321553,70.56803599,181.3,181.29,0.03]
[1755499321774,75.57863728,181.3,181.29,0.03]
[1755499322350,26.0,181.3,181.29,0.03]
[1755499322583,9.27863728,181.31,181.29,0.03]
[1755499323164,26.65,181.32,181.29,0.03]
[1755499323165,9.92863728,181.3,181.29,0.03]
[1755499323667,26.0,181.32,181.29,0.03]
[1755499323991,35.27863728,181.32,181.29,0.03]
[1755499324275,26.0,181.32,181.29,0.03]
[1755499324657,50.26863728,181.33,181.29,0.03]
[1755499325076,31.51429193,181.35,181.3,0.69]
[1755499325077,26.65,181.35,181.3,0.69]
[1755499325257,35.92863728,181.35,181.29,0.03]
[1755499325469,6.16469814,181.34,181.29,0.03]
[1755499325653,0.65,181.34,181.29,5.54598972]
[1755499325852,9.27863728,181.33,181.29,6.23598972]
[1755499326098,0.65,181.34,181.3,0.69]
[1755499326290,9.27863728,181.34,181.3,0.69]
[1755499326661,9.92863728,181.34,181.3,0.69]
[1755499327095,9.92863728,181.34,181.29,14.824627]
[1755499327305,9.92863728,181.34,181.29,15.514627]
[1755499327306,0.65,181.34,181.29,15.514627]
[1755499327671,9.92863728,181.34,181.29,15.514627]
[1755499327865,9.92863728,181.34,181.3,0.69]
[1755499329165,0.65,181.33,181.29,5.54598972]
[1755499329366,9.92863728,181.33,181.29,6.23598972]
[1755499329575,9.27863728,181.33,181.29,6.23598972]
[1755499329778,9.27863728,181.33,181.3,0.69]
[1755499330201,9.27863728,181.33,181.29,5.54598972]
[1755499330393,0.65,181.33,181.29,0.03]
[1755499330593,9.27863728,181.34,181.29,0.72]
[1755499330797,9.98863728,181.34,181.29,0.72]
[1755499331479,9.98863728,181.34,181.3,5.5157198]
[1755499331690,0.71,181.34,181.3,5.5157198]
[1755499331903,9.98863728,181.34,181.3,5.5157198]
[1755499332311,6.68710123,181.34,181.3,5.5157198]
[1755499332801,0.71,181.34,181.3,5.5157198]
[1755499334106,0.06,181.34,181.31,6.20532683]
[1755499334306,0.06,181.34,181.3,5.5156488]
[1755499334476,0.71,181.34,181.3,5.5156488]
[1755499334676,0.71,181.34,181.3,6.2056488]
[1755499334989,0.06,181.34,181.32,5.97710123]
[1755499335173,0.06,181.34,181.32,6.66710123]
[1755499335372,0.06,181.34,181.3,12.18275003]
[1755499335599,0.06,181.34,181.31,6.66710123]
[1755499335804,0.06,181.34,181.31,0.69]
[1755499335988,0.06,181.34,181.31,6.66710123]
[1755499336173,0.06,181.34,181.32,5.5151114]
[1755499339510,0.06,181.34,181.3,5.5157198]
[1755499339696,6.64710123,181.33,181.29,0.03]
[1755499339896,0.06,181.34,181.3,6.67710123]
[1755499340100,0.06,181.34,181.31,6.67710123]
[1755499340299,0.06,181.34,181.31,6.21518687]
[1755499340876,0.06,181.34,181.31,0.7]
[1755499341092,0.06,181.34,181.31,6.2153603]
[1755499341794,0.06,181.34,181.3,11.49276118]
[1755499342002,6.70710123,181.34,181.3,5.51565995]
[1755499342209,0.67,181.33,181.29,5.54599898]
[1755499342390,0.67,181.33,181.29,0.03]
[1755499342589,0.67,181.32,181.29,0.03]
[1755499342900,5.97710123,181.33,181.29,0.03]
[1755499343112,6.64710123,181.33,181.29,0.03]
[1755499343313,6.64710123,181.33,181.29,0.73]
[1755499343679,6.64710123,181.33,181.29,0.03]
[1755499343983,0.67,181.32,181.29,0.03]
[1755499344299,0.06,181.34,181.29,5.54595733]
[1755499344496,0.73,181.34,181.3,0.7]
[1755499344702,0.06,181.34,181.31,6.67710123]
[1755499344894,0.06,181.34,181.29,5.54595733]
[1755499345091,6.70710123,181.34,181.3,0.7]
[1755499345496,0.73,181.34,181.29,11.52305856]
[1755499345714,6.70710123,181.34,181.29,6.24595733]
[1755499345918,6.03710123,181.34,181.29,12.22305856]
[1755499346090,6.64710123,181.33,181.29,6.24595733]
[1755499346509,6.03710123,181.34,181.29,12.22305856]
[1755499346699,0.06,181.34,181.3,6.67710123]
[1755499346908,0.06,181.34,181.31,0.7]
[1755499347210,0.06,181.34,181.33,5.97710123]
[1755499347592,0.06,181.34,181.33,6.21480725]
[1755499347913,0.06,181.34,181.33,12.19190848]
[1755499348407,0.06,181.34,181.33,85.61480725]
[1755499348581,0.06,181.34,181.29,0.73]
[1755499348785,5.97710123,181.32,181.29,0.03]
[1755499349189,6.64710123,181.33,181.29,0.03]
[1755499349411,0.06,181.34,181.29,11.52304585]
[1755499349707,0.06,181.34,181.33,5.97710123]
[1755499349909,0.06,181.34,181.32,5.5151114]
[1755499350224,0.67,181.33,181.32,5.5151114]
[1755499350384,0.06,181.34,181.32,5.5151114]
[1755499350785,0.06,181.34,181.33,0.7]
[1755499350996,0.06,181.34,181.33,6.21480725]
[1755499353113,0.06,181.34,181.33,53.31190848]
[1755499353317,0.06,181.34,181.33,47.33480725]
[1755499353502,0.06,181.34,181.33,126.73480725]
[1755499353690,0.06,181.34,181.33,91.59190848]
[1755499356512,0.06,181.34,181.33,85.61480725]
[1755499356716,0.06,181.34,181.33,91.59190848]
[1755499357517,0.06,181.34,181.33,85.61480725]
[1755499357722,0.06,181.34,181.33,91.59190848]
[1755499359013,0.06,181.34,181.33,85.61480725]
[1755499359209,0.06,181.34,181.33,91.59190848]
[1755499359396,0.06,181.34,181.33,84.91480725]
[1755499359998,0.06,181.34,181.33,90.89190848]
[1755499360633,0.06,181.34,181.33,84.91480725]
[1755499361407,6.70710123,181.34,181.33,79.4]
[1755499361602,0.73,181.34,181.33,79.4]
[1755499363834,0.06,181.34,181.33,79.4]
[1755499364209,0.06,181.34,181.33,84.91480725]
[1755499364414,6.70710123,181.34,181.3,79.4]
[1755499364613,5.97710123,181.31,181.29,0.03]
[1755499364824,5.97710123,181.31,181.29,5.54602404]
[1755499365047,6.64710123,181.31,181.29,5.54602404]
[1755499366435,0.7,181.3,181.29,0.03]
[1755499366640,6.67710123,181.31,181.29,0.03]
[1755499367016,0.7,181.31,181.29,0.03]
[1755499367217,6.67710123,181.31,181.29,0.03]
[1755499368131,0.7,181.31,181.29,0.03]
[1755499368321,6.67710123,181.31,181.29,0.03]
[1755499369017,0.7,181.31,181.29,0.03]
[1755499369518,0.7,181.31,181.29,79.43]
[1755499370248,6.67710123,181.31,181.29,79.43]
[1755499371016,6.67710123,181.31,181.29,84.9459528]
[1755499371349,5.97710123,181.31,181.29,84.9459528]
[1755499372627,6.67710123,181.31,181.29,84.9459528]
[1755499372823,0.7,181.31,181.29,84.9459528]
[1755499374035,10.31409668,181.3,181.29,0.03]
[1755499374373,6.67710123,181.3,181.29,0.03]
[1755499374543,10.31409668,181.3,181.29,0.03]
[1755499376075,15.82981648,181.3,181.29,0.03]
[1755499377338,30.93603205,181.3,181.29,0.03]
[1755499380870,41.10621557,181.28,181.27,0.03]
[1755499381168,41.10621557,181.28,181.25,0.03]
[1755499381169,5.51693699,181.26,181.25,0.03]
[1755499381467,15.10621557,181.25,181.15,79.4]
[1755499381655,5.97710123,181.18,181.15,79.4]
[1755499381962,5.97710123,181.18,181.16,0.69]
[1755499382174,0.7,181.21,181.16,0.69]
[1755499382332,5.97710123,181.18,181.15,79.4]
[1755499382670,5.97710123,181.16,181.14,0.69]
[1755499382970,5.97710123,181.15,181.13,0.84700736]
[1755499383138,6.67710123,181.14,181.13,0.84700736]
[1755499383338,5.97710123,181.14,181.13,0.84700736]
[1755499383570,0.7,181.14,181.13,0.84700736]
[1755499383735,56.04621557,181.2,181.13,7.05790143]
[1755499383940,15.10621557,181.2,181.14,0.69]
[1755499384240,5.97710123,181.18,181.14,0.69]
[1755499384445,5.97710123,181.15,181.13,0.84700736]
[1755499384668,5.97710123,181.14,181.13,0.84700736]
[1755499385297,6.67710123,181.14,181.13,0.84700736]
[1755499385644,0.7,181.17,181.13,7.05777864]
[1755499385853,5.97710123,181.16,181.13,1.53700736]
[1755499386160,5.97710123,181.14,181.13,0.84700736]
[1755499386487,15.80621557,181.14,181.13,0.84700736]
[1755499386660,21.7833168,181.14,181.13,0.84700736]
[1755499386843,15.10621557,181.13,181.11,0.59812478]
[1755499387043,47.17710123,181.12,181.11,0.59812478]
[1755499387241,56.90621557,181.12,181.11,0.59812478]
[1755499387547,5.97710123,181.13,181.11,1.28812478]
[1755499387749,0.6,181.12,181.11,0.59812478]
[1755499387949,62.9633168,181.12,181.11,0.59812478]
[1755499388157,21.6833168,181.12,181.11,0.59812478]
[1755499388335,63.0033168,181.12,181.11,0.59812478]
[1755499388538,51.10621557,181.09,181.07,0.03]
[1755499388761,19.32107696,181.15,180.94,0.69]
[1755499388762,15.10621557,181.04,180.94,0.69]
[1755499389071,21.95420246,181.08,180.94,0.69]
[1755499389072,47.0833168,181.01,180.94,0.69]
[1755499389270,72.98455665,181.01,180.92,0.69]
[1755499389477,5.97710123,180.94,180.93,0.69]
[1755499389679,41.46,180.95,180.9,0.56]
[1755499390047,15.10621557,180.94,180.9,0.56]
[1755499390377,5.97710123,180.94,180.9,4.277732]
[1755499390675,0.69,180.93,180.86,6.36131334]
[1755499390852,5.63688159,180.99,180.86,20.18415974]
[1755499391057,15.10621557,180.98,180.89,26.0]
[1755499391283,43.66,181.02,180.9,5.52791597]
[1755499391481,15.10621557,181.01,180.9,5.52791597]
[1755499391654,5.97710123,180.96,180.9,5.52791597]
[1755499391844,44.08,180.96,180.88,5.52826367]
[1755499392055,26.0,180.94,180.86,6.36106053]
[1755499392352,15.10621557,180.93,180.87,0.69]
[1755499392549,0.69,180.98,180.87,0.69]
[1755499392874,44.1,180.98,180.89,9.34115903]
[1755499393074,26.0,180.99,180.93,9.34115903]
[1755499393276,26.0,180.99,180.94,0.69]
[1755499393472,26.0,180.99,180.91,0.69]
[1755499393473,26.0,180.96,180.91,0.69]
[1755499393643,26.0,180.95,180.87,6.21883286]
[1755499393841,9.34115903,180.91,180.88,0.69]
[1755499394041,26.0,180.87,180.86,0.83219468]
[1755499394260,0.69,180.94,180.86,0.83219468]
[1755499394261,0.69,180.91,180.86,0.83219468]
[1755499394472,26.0,180.89,180.86,0.83219468]
[1755499394976,9.34115903,180.87,180.86,0.83219468]
[1755499395180,26.69,180.89,180.86,0.83219468]
[1755499395368,35.34115903,180.87,180.86,0.83219468]
[1755499395872,0.69,180.87,180.86,0.83219468]
[1755499396249,15.79621557,180.87,180.86,0.83219468]
[1755499396451,41.10621557,180.87,180.86,0.83219468]
[1755499396658,79.96115903,180.87,180.86,0.83219468]
[1755499396885,95.7173746,180.87,180.86,0.83219468]
[1755499397085,86.37621557,180.87,180.86,0.83219468]
[1755499397264,26.0,180.83,180.75,5.53248947]
[1755499397457,9.34115903,180.81,180.75,5.53248947]
[1755499397680,44.84,180.82,180.75,9.34115903]
[1755499397882,0.65,180.88,180.8,9.34115903]
[1755499398185,14.82337866,181.02,180.74,19.36482657]
[1755499398186,0.65,180.96,180.86,9.34115903]
[1755499398393,9.34115903,180.96,180.83,26.0]
[1755499398592,45.0,180.97,180.83,26.0]
[1755499398752,0.65,180.96,180.84,15.10621557]
[1755499398959,9.34115903,180.91,180.76,10.0]
[1755499399187,26.0,180.92,180.85,5.52944429]
[1755499399488,9.34115903,180.86,180.85,0.68]
[1755499399659,0.06,180.91,180.78,13.82824683]
[1755499399660,26.0,180.88,180.81,0.68]
[1755499399859,26.0,180.88,180.78,13.82824683]
[1755499399860,0.65,180.87,180.78,0.68]
[1755499400073,26.0,180.84,180.78,0.326]
[1755499400294,0.65,180.83,180.76,5.53219738]
[1755499400561,0.65,180.83,180.73,50.0]
[1755499400562,71.22,180.82,180.73,50.0]
[1755499400876,9.34115903,180.74,180.73,50.0]
[1755499401395,0.65,180.77,180.73,50.0]
[1755499401581,71.3,180.79,180.74,9.34115903]
[1755499401883,9.34115903,180.79,180.73,55.53304066]
[1755499402090,45.3,180.81,180.73,56.21304066]
[1755499402259,45.3,180.81,180.74,0.68]
[1755499402463,45.34,180.86,180.8,9.34115903]
[1755499402676,15.81621557,180.91,180.81,0.68]
[1755499402895,45.4,180.91,180.84,9.34115903]
[1755499403058,0.06,180.91,180.87,9.34115903]
[1755499403397,0.65,180.9,180.85,0.68]
[1755499403567,9.34115903,180.86,180.75,0.68]
[1755499403887,0.65,180.87,180.77,9.34115903]
[1755499404067,46.55,180.87,180.78,0.68]
[1755499404269,9.34115903,180.81,180.76,5.53219738]
[1755499404489,0.65,180.88,180.8,9.34115903]
[1755499404670,0.65,180.88,180.81,0.68]
[1755499404872,15.10621557,180.87,180.77,10.02115903]
[1755499405090,0.65,180.88,180.8,9.34115903]
[1755499405278,9.34115903,180.85,180.81,5.53066755]
[1755499405472,0.06,180.91,180.81,5.53066755]
[1755499405473,0.06,180.91,180.84,9.34115903]
[1755499405672,0.06,180.91,180.9,9.34115903]
[1755499405880,9.40115903,180.91,180.81,45.35733642]
[1755499406061,0.06,180.91,180.83,0.68]
[1755499406262,0.06,180.91,180.9,9.34115903]
[1755499406470,1e-08,180.91,180.9,0.68]
[1755499407092,1e-08,180.91,180.84,46.14]
[1755499407312,1e-08,180.91,180.85,0.68]
[1755499407466,9.34115903,180.87,180.82,0.68]
[1755499407672,0.65,180.9,180.83,0.68]
[1755499407874,9.34115903,180.87,180.83,0.68]
[1755499408266,14.49046136,180.87,180.83,0.68]
[1755499408489,1e-08,180.91,180.85,14.49046136]
[1755499408674,1e-08,180.91,180.86,0.68]
[1755499409301,14.49046136,180.88,180.83,0.68]
[1755499409502,0.65,180.88,180.8,20.03840707]
[1755499409662,14.49046136,180.84,180.8,6.21097345]
[1755499409866,14.49046136,180.83,180.8,5.53097345]
[1755499410102,15.10621557,180.89,180.8,5.53097345]
[1755499410103,0.65,180.86,180.8,5.53097345]
[1755499410325,15.75621557,180.89,180.8,20.02143481]
[1755499410600,15.75621557,180.89,180.78,0.68]
[1755499410601,14.49046136,180.82,180.78,0.68]
[1755499410901,0.65,180.86,180.78,0.68]
[1755499411204,1e-08,180.91,180.84,14.49046136]
[1755499411409,14.49046136,180.89,180.84,14.49046136]
[1755499411625,14.49046136,180.89,180.83,14.49046136]
[1755499411777,14.49046136,180.89,180.85,0.68]
[1755499411978,26.00000001,180.91,180.83,14.49046136]
[1755499412209,14.49046136,180.87,180.82,15.17046136]
[1755499412406,0.65,180.89,180.82,0.68]
[1755499412677,0.65,180.89,180.79,5.53127938]
[1755499412678,0.65,180.89,180.79,20.02174074]
[1755499412917,14.49046136,180.85,180.79,5.53127938]
[1755499413106,0.65,180.87,180.79,5.53127938]
[1755499413303,0.65,180.87,180.8,15.17046136]
[1755499413508,14.49046136,180.86,180.8,15.17046136]
[1755499413691,0.65,180.87,180.8,0.68]
[1755499414011,0.65,180.87,180.74,61.24621557]
[1755499414012,26.0,180.88,180.81,14.49046136]
[1755499414403,14.49046136,180.83,180.74,46.14]
[1755499414591,14.49046136,180.83,180.77,14.49046136]
[1755499414786,0.65,180.85,180.77,14.49046136]
[1755499415025,0.65,180.85,180.79,0.03]
[1755499415366,0.65,180.85,180.79,14.52046136]
[1755499415488,0.65,180.85,180.79,0.03]
[1755499415690,14.49046136,180.83,180.79,0.03]
[1755499415892,14.49046136,180.82,180.79,0.03]
[1755499416106,0.65,180.85,180.79,0.03]
[1755499417123,14.49046136,180.8,180.79,0.03]
[1755499417829,0.65,180.83,180.79,0.03]
[1755499417983,14.49046136,180.81,180.79,0.03]
[1755499418700,5.52888471,180.87,180.79,0.03]
[1755499418701,15.10621557,180.9,180.79,0.03]
[1755499418885,14.49046136,180.84,180.79,0.71]
[1755499419107,26.65,180.86,180.79,0.71]
[1755499419306,26.65,180.86,180.8,5.53097345]
[1755499419625,14.49046136,180.87,180.82,14.49046136]
[1755499419827,14.49046136,180.87,180.82,15.17046136]
[1755499420025,1e-08,180.91,180.86,14.49046136]
[1755499420233,1e-08,180.91,180.84,26.0]
[1755499420414,1e-08,180.91,180.9,14.49046136]
[1755499420926,1e-08,180.91,180.88,46.74]
[1755499421230,1e-08,180.93,180.92,26.0]
[1755499421527,0.06,180.97,180.93,15.10621557]
[1755499421716,0.06,180.97,180.96,14.49046136]
[1755499422025,0.65,181.09,180.96,14.49046136]
[1755499422196,0.65,181.09,180.97,0.68]
[1755499422394,14.49046136,181.03,180.98,46.06]
[1755499422601,3.55984243,181.08,181.02,14.49046136]
[1755499422914,14.49046136,181.11,181.03,0.68]
[1755499423137,14.49046136,181.07,180.98,41.10621557]
[1755499423305,14.49046136,181.06,181.01,14.49046136]
[1755499423504,0.65,181.12,181.05,14.49046136]
[1755499423833,3.56464945,181.18,181.11,14.49046136]
[1755499424022,3.56464945,181.17,181.1,0.68]
[1755499424217,14.49046136,181.17,181.12,14.49046136]
[1755499424601,14.49046136,181.16,181.11,14.49046136]
[1755499424797,15.14046136,181.17,181.11,14.49046136]
[1755499425001,0.65,181.17,181.12,46.08]
[1755499425234,14.49046136,181.14,181.03,19.33381206]
[1755499425437,15.10621557,181.22,181.1,14.49046136]
[1755499425438,3.56941531,181.2,181.1,14.49046136]
[1755499425729,20.62447567,181.22,181.07,26.68]
[1755499425730,14.49046136,181.17,181.11,60.55046136]
[1755499425915,0.65,181.19,181.11,46.06]
[1755499426111,4.40237849,181.26,181.14,14.49046136]
[1755499426112,14.49046136,181.2,181.14,14.49046136]
[1755499426312,14.49046136,181.19,181.13,14.49046136]
[1755499426512,14.49046136,181.14,181.07,26.66]
[1755499426717,14.49046136,181.13,181.08,46.0]
[1755499427121,14.49046136,181.14,181.09,15.15046136]
[1755499427320,0.68,181.16,181.1,66.01227251]
[1755499427521,3.56895032,181.22,181.15,14.49046136]
[1755499427722,14.49046136,181.23,181.18,14.49046136]
[1755499427906,15.17046136,181.23,181.17,14.49046136]
[1755499428109,14.49046136,181.22,181.17,14.49046136]
[1755499428312,14.49046136,181.19,181.11,0.66]
[1755499428634,14.49046136,181.17,181.12,14.49046136]
[1755499428830,14.49046136,181.16,181.11,15.15046136]
[1755499429041,0.68,181.17,181.12,45.98]
[1755499429209,0.68,181.16,181.1,20.01227251]
[1755499429538,14.49046136,181.14,181.1,5.52181115]
[1755499429833,14.49046136,181.13,181.11,45.9]
[1755499430037,15.17046136,181.14,181.11,45.9]
[1755499430358,0.68,181.16,181.11,45.9]
[1755499430655,5.51906838,181.19,181.1,45.9]
[1755499430656,14.49046136,181.13,181.1,45.9]
[1755499430814,0.68,181.12,181.09,45.9]
[1755499431001,0.68,181.15,181.09,60.39046136]
[1755499431206,14.49046136,181.16,181.11,14.49046136]
[1755499431714,14.49046136,181.14,181.1,5.52181115]
[1755499431925,14.49046136,181.16,181.11,14.49046136]
[1755499432141,0.06,181.2,181.15,14.49046136]
[1755499432432,0.06,181.2,181.15,45.82]
[1755499432731,0.74,181.2,181.15,45.82]
[1755499432909,0.06,181.2,181.16,45.86]
[1755499433106,0.06,181.2,181.12,0.66]
[1755499433107,14.49046136,181.18,181.12,0.66]
[1755499433322,14.49046136,181.18,181.13,51.36081805]
[1755499433323,14.49046136,181.15,181.13,51.36081805]
[1755499433513,14.49046136,181.14,181.11,5.52121646]
[1755499433715,14.49046136,181.15,181.11,5.52121646]
[1755499433936,0.06,181.2,181.13,14.49046136]
[1755499434138,3.62335007,181.2,181.12,0.66]
[1755499434339,14.49046136,181.16,181.11,20.01167782]
[1755499434510,0.68,181.19,181.12,60.97046136]
[1755499434714,14.49046136,181.17,181.12,60.97046136]
[1755499435142,0.68,181.17,181.11,5.52121646]
[1755499435316,0.68,181.19,181.13,14.49046136]
[1755499435516,14.49046136,181.17,181.14,45.76]
[1755499436249,0.68,181.19,181.14,45.76]
[1755499436543,14.49046136,181.18,181.14,45.76]
[1755499436748,0.06,181.2,181.15,0.66]
[1755499436960,0.06,181.2,181.14,45.76]
[1755499436961,0.06,181.2,181.16,15.15046136]
[1755499437118,0.06,181.2,181.16,0.66]
[1755499437319,14.55046136,181.2,181.17,5.51967765]
[1755499437721,0.06,181.2,181.17,5.51967765]
[1755499438147,0.06,181.2,181.18,45.94]
[1755499438553,0.06,181.2,181.17,5.51967765]
[1755499439050,0.06,181.2,181.18,45.94]
[1755499439453,0.06,181.2,181.17,5.51939246]
[1755499439663,14.49046136,181.18,181.11,0.66]
[1755499439824,14.49046136,181.16,181.11,15.15046136]
[1755499440028,14.49046136,181.16,181.12,45.88]
[1755499440361,0.06,181.2,181.13,0.66]
[1755499440644,0.06,181.2,181.17,14.49046136]
[1755499440821,0.06,181.2,181.19,14.49046136]
[1755499441022,0.06,181.2,181.18,46.54]
[1755499441023,0.06,181.2,181.18,45.88]
[1755499441245,0.06,181.2,181.19,15.15046136]
[1755499441553,0.06,181.2,181.19,5.51906838]
[1755499441719,0.06,181.27,181.19,65.81673933]
[1755499441920,14.49046136,181.24,181.19,51.35906838]
[1755499442153,0.74,181.27,181.19,51.35906838]
[1755499442329,0.06,181.27,181.2,0.66]
[1755499442659,14.49046136,181.26,181.21,14.49046136]
[1755499442958,14.55046136,181.27,181.22,0.66]
[1755499443139,14.55046136,181.27,181.22,15.15046136]
[1755499443447,0.06,181.27,181.23,20.6683116]
[1755499443653,0.06,181.27,181.24,46.5]
[1755499443947,0.06,181.27,181.24,60.99046136]
[1755499444154,0.06,181.27,181.25,14.49046136]
[1755499444723,0.06,181.27,181.26,14.49046136]
[1755499444940,0.06,181.27,181.26,15.15046136]
[1755499445357,0.06,181.27,181.25,5.51724137]
[1755499445750,0.06,181.27,181.25,20.00770273]
[1755499445952,0.06,181.27,181.26,15.15046136]
[1755499446250,1e-08,181.27,181.26,15.15046136]